bitfinex/quotes_BTCUSD_20230831
["timestamp","ask_amount","ask_price","bid_price","bid_amount"]
[1693514461478,2.7738315,26163.0,26162.0,0.020301]
[1693514461680,3.0029315,26163.0,26162.0,0.020301]
[1693514461865,3.0042515,26163.0,26162.0,0.020301]
[1693514462065,3.0036515,26163.0,26162.0,0.020301]
[1693514462321,3.0047315,26163.0,26162.0,0.020301]
[1693514462518,3.0033515,26163.0,26162.0,0.020301]
[1693514462711,3.0032915,26163.0,26162.0,0.020301]
[1693514462874,3.0036515,26163.0,26162.0,0.020301]
[1693514463255,3.0045515,26163.0,26162.0,0.020301]
[1693514463465,3.0056915,26163.0,26162.0,0.020301]
[1693514463663,3.0055115,26163.0,26162.0,0.020301]
[1693514463863,3.0047915,26163.0,26162.0,0.020301]
[1693514464067,3.0049715,26163.0,26162.0,0.020301]
[1693514464303,3.0046115,26163.0,26162.0,0.020301]
[1693514464503,3.0044315,26163.0,26162.0,0.020301]
[1693514464713,3.0020915,26163.0,26162.0,0.020301]
[1693514464919,3.0014315,26163.0,26162.0,0.020301]
[1693514465124,3.0012515,26163.0,26162.0,0.020301]
[1693514465324,3.0014315,26163.0,26162.0,0.020301]
[1693514465529,3.0007715,26163.0,26162.0,0.020301]
[1693514465701,3.0005915,26163.0,26162.0,0.020301]
[1693514465907,2.9998115,26163.0,26162.0,0.020301]
[1693514466110,2.9992115,26163.0,26162.0,0.020301]
[1693514466319,3.0005915,26163.0,26162.0,0.020301]
[1693514466519,3.0004115,26163.0,26162.0,0.020301]
[1693514466726,3.0002315,26163.0,26162.0,0.020301]
[1693514466920,3.0001115,26163.0,26162.0,0.020301]
[1693514467094,3.0014315,26163.0,26162.0,0.020301]
[1693514467294,3.1201915,26163.0,26162.0,0.020301]
[1693514467519,3.1102915,26163.0,26162.0,0.020301]
[1693514467719,3.1082515,26163.0,26162.0,0.020301]
[1693514467929,3.1087315,26163.0,26162.0,0.020301]
[1693514468151,3.1087915,26163.0,26162.0,0.020301]
[1693514468347,3.1086715,26163.0,26162.0,0.020301]
[1693514468599,3.1075315,26163.0,26162.0,0.020301]
[1693514468771,3.1054915,26163.0,26162.0,0.020301]
[1693514469013,3.1054315,26163.0,26162.0,0.020301]
[1693514469215,2.93896599,26163.0,26162.0,0.020301]
[1693514469367,2.93890599,26163.0,26162.0,0.020301]
[1693514469569,2.94040599,26163.0,26162.0,0.020301]
[1693514469771,2.94562599,26163.0,26162.0,0.020301]
[1693514469972,2.94418599,26163.0,26162.0,0.020301]
[1693514470176,2.94370599,26163.0,26162.0,0.020301]
[1693514470498,2.94466599,26163.0,26162.0,0.020301]
[1693514470695,2.94154599,26163.0,26162.0,0.020301]
[1693514470998,2.93950599,26163.0,26162.0,0.020301]
[1693514471196,2.93962599,26163.0,26162.0,0.020301]
[1693514471395,2.93914599,26163.0,26162.0,0.020301]
[1693514471619,2.93902599,26163.0,26162.0,0.020301]
[1693514471818,2.93890599,26163.0,26162.0,0.020301]
[1693514471995,2.93884599,26163.0,26162.0,0.020301]
[1693514472196,2.93788599,26163.0,26162.0,0.020301]
[1693514472547,3.09919311,26163.0,26162.0,0.020301]
[1693514472725,3.09937311,26163.0,26162.0,0.020301]
[1693514472899,2.93836599,26163.0,26162.0,0.020301]
[1693514473102,2.93830599,26163.0,26162.0,0.020301]
[1693514473309,3.09950828,26163.0,26162.0,0.020301]
[1693514473666,3.09404828,26163.0,26162.0,0.020301]
[1693514473844,3.09422828,26163.0,26162.0,0.020301]
[1693514474162,2.93284599,26163.0,26162.0,0.020301]
[1693514474595,2.93224599,26163.0,26162.0,0.020301]
[1693514474985,2.93212599,26163.0,26162.0,0.020301]
[1693514475409,2.93206599,26163.0,26162.0,0.020301]
[1693514475609,2.93224599,26163.0,26162.0,0.020301]
[1693514475812,2.93344599,26163.0,26162.0,0.020301]
[1693514476213,2.93368599,26163.0,26162.0,0.020301]
[1693514476711,2.93530599,26163.0,26162.0,0.020301]
[1693514477014,2.93830599,26163.0,26162.0,0.020301]
[1693514477218,2.93824599,26163.0,26162.0,0.020301]
[1693514477407,2.93776599,26163.0,26162.0,0.020301]
[1693514477833,2.93758599,26163.0,26162.0,0.020301]
[1693514478006,2.93746599,26163.0,26162.0,0.020301]
[1693514478337,2.93740599,26163.0,26162.0,0.020301]
[1693514478505,2.93716599,26163.0,26162.0,0.020301]
[1693514478711,2.93734599,26163.0,26162.0,0.020301]
[1693514478889,2.93728599,26163.0,26162.0,0.020301]
[1693514479119,3.3729657,26163.0,26162.0,0.020301]
[1693514479271,3.3752457,26163.0,26162.0,0.020301]
[1693514479475,3.3775257,26163.0,26162.0,0.020301]
[1693514479676,3.3781257,26163.0,26162.0,0.020301]
[1693514479871,3.3780657,26163.0,26162.0,0.020301]
[1693514480136,3.3781257,26163.0,26162.0,0.020301]
[1693514480295,3.3780057,26163.0,26162.0,0.020301]
[1693514480495,3.3766257,26163.0,26162.0,0.020301]
[1693514480796,3.3744057,26163.0,26162.0,0.020301]
[1693514481017,3.3766857,26163.0,26162.0,0.020301]
[1693514481445,3.3769857,26163.0,26162.0,0.020301]
[1693514481656,3.3776457,26163.0,26162.0,0.020301]
[1693514481975,3.3777657,26163.0,26162.0,0.020301]
[1693514482178,3.3777057,26163.0,26162.0,0.020301]
[1693514482405,3.3783057,26163.0,26162.0,0.020301]
[1693514482581,3.3798057,26163.0,26162.0,0.020301]
[1693514482818,3.3806457,26163.0,26162.0,0.020301]
[1693514482995,3.3803457,26163.0,26162.0,0.020301]
[1693514483196,3.3804057,26163.0,26162.0,0.020301]
[1693514483355,3.3802257,26163.0,26162.0,0.020301]
[1693514483557,3.3805857,26163.0,26162.0,0.020301]
[1693514483781,3.3787257,26163.0,26162.0,0.020301]
[1693514483958,3.3779457,26163.0,26162.0,0.020301]
[1693514484155,3.58611524,26163.0,26162.0,0.020301]
[1693514484501,3.37969775,26163.0,26162.0,0.020301]
[1693514484805,3.37951775,26163.0,26162.0,0.020301]
[1693514485013,3.37945775,26163.0,26162.0,0.020301]
[1693514485220,3.37939775,26163.0,26162.0,0.020301]
[1693514485517,3.37975775,26163.0,26162.0,0.020301]
[1693514485717,3.37993775,26163.0,26162.0,0.020301]
[1693514485922,3.26321775,26163.0,26162.0,0.020301]
[1693514486124,3.37993775,26163.0,26162.0,0.020301]
[1693514486342,3.37999775,26163.0,26162.0,0.020301]
[1693514486497,3.37945775,26163.0,26162.0,0.020301]
[1693514486706,3.37957775,26163.0,26162.0,0.020301]
[1693514486905,3.37969775,26163.0,26162.0,0.020301]
[1693514487084,3.37963775,26163.0,26162.0,0.020301]
[1693514487289,3.37957775,26163.0,26162.0,0.020301]
[1693514487533,3.37963775,26163.0,26162.0,0.020301]
[1693514487746,3.37957775,26163.0,26162.0,0.020301]
[1693514488158,3.37951775,26163.0,26162.0,0.020301]
[1693514488388,3.38029775,26163.0,26162.0,0.020301]
[1693514488523,3.37987775,26163.0,26162.0,0.020301]
[1693514488747,3.37975775,26163.0,26162.0,0.020301]
[1693514488946,3.37969775,26163.0,26162.0,0.020301]
[1693514489147,2.73735166,26163.0,26162.0,0.020301]
[1693514489419,3.19401966,26163.0,26162.0,0.020301]
[1693514489594,3.31013966,26163.0,26162.0,0.020301]
[1693514489733,3.30983966,26163.0,26162.0,0.020301]
[1693514490123,3.30989966,26163.0,26162.0,0.020301]
[1693514490322,3.30977966,26163.0,26162.0,0.020301]
[1693514490498,3.30935966,26163.0,26162.0,0.020301]
[1693514490642,3.30929966,26163.0,26162.0,0.020301]
[1693514490845,3.30923966,26163.0,26162.0,0.020301]
[1693514491234,3.30917966,26163.0,26162.0,0.020301]
[1693514491436,3.29981966,26163.0,26162.0,0.020301]
[1693514491636,3.29867966,26163.0,26162.0,0.020301]
[1693514491905,3.29549966,26163.0,26162.0,0.020301]
[1693514492199,3.29555966,26163.0,26162.0,0.020301]
[1693514492511,3.29657966,26163.0,26162.0,0.020301]
[1693514492713,3.29663966,26163.0,26162.0,0.020301]
[1693514493112,3.29675966,26163.0,26162.0,0.020301]
[1693514493315,3.29681966,26163.0,26162.0,0.020301]
[1693514493538,3.30035966,26163.0,26162.0,0.020301]
[1693514493663,3.29915966,26163.0,26162.0,0.020301]
[1693514493871,3.29909966,26163.0,26162.0,0.020301]
[1693514494078,3.29915966,26163.0,26162.0,0.020301]
[1693514494303,3.30119966,26163.0,26162.0,0.020301]
[1693514494498,3.30191966,26163.0,26162.0,0.020301]
[1693514494696,3.30491966,26163.0,26162.0,0.020301]
[1693514494942,3.30821966,26163.0,26162.0,0.020301]
[1693514495200,3.30827966,26163.0,26162.0,0.020301]
[1693514495398,3.30845966,26163.0,26162.0,0.020301]
[1693514495715,3.30827966,26163.0,26162.0,0.020301]
[1693514496138,3.30821966,26163.0,26162.0,0.020301]
[1693514496394,3.30851966,26163.0,26162.0,0.020301]
[1693514496746,3.30827966,26163.0,26162.0,0.020301]
[1693514496954,3.30539966,26163.0,26162.0,0.020301]
[1693514497154,3.30533966,26163.0,26162.0,0.020301]
[1693514497358,3.30497966,26163.0,26162.0,0.020301]
[1693514497556,3.30503966,26163.0,26162.0,0.020301]
[1693514497855,3.29873966,26163.0,26162.0,0.020301]
[1693514498116,3.29867966,26163.0,26162.0,0.020301]
[1693514498423,3.29921966,26163.0,26162.0,0.020301]
[1693514498721,3.29999966,26163.0,26162.0,0.020301]
[1693514499025,3.30185966,26163.0,26162.0,0.020301]
[1693514499222,3.30179966,26163.0,26162.0,0.020301]
[1693514499463,3.30185966,26163.0,26162.0,0.020301]
[1693514499642,3.30167966,26163.0,26162.0,0.020301]
[1693514499818,3.30149966,26163.0,26162.0,0.020301]
[1693514500077,3.30167966,26163.0,26162.0,0.020301]
[1693514500229,3.30149966,26163.0,26162.0,0.020301]
[1693514500411,3.30143966,26163.0,26162.0,0.020301]
[1693514500612,3.30167966,26163.0,26162.0,0.020301]
[1693514501016,3.30173966,26163.0,26162.0,0.020301]
[1693514501190,3.29951966,26163.0,26162.0,0.020301]
[1693514501397,3.29927966,26163.0,26162.0,0.020301]
[1693514501595,3.29921966,26163.0,26162.0,0.020301]
[1693514501844,3.29897966,26163.0,26162.0,0.020301]
[1693514502048,3.29951966,26163.0,26162.0,0.020301]
[1693514502361,3.29975966,26163.0,26162.0,0.020301]
[1693514502562,3.29999966,26163.0,26162.0,0.020301]
[1693514502738,3.29963966,26163.0,26162.0,0.020301]
[1693514502940,3.29717966,26163.0,26162.0,0.020301]
[1693514503140,3.29765966,26163.0,26162.0,0.020301]
[1693514503343,3.29987966,26163.0,26162.0,0.020301]
[1693514503546,3.30035966,26163.0,26162.0,0.020301]
[1693514503708,3.30023966,26163.0,26162.0,0.020301]
[1693514503941,3.30011966,26163.0,26162.0,0.020301]
[1693514504346,3.30143966,26163.0,26162.0,0.020301]
[1693514504707,3.30107966,26163.0,26162.0,0.020301]
[1693514504999,3.30113966,26163.0,26162.0,0.020301]
[1693514505204,3.30119966,26163.0,26162.0,0.020301]
[1693514505414,3.30089966,26163.0,26162.0,0.020301]
[1693514505609,3.30107966,26163.0,26162.0,0.020301]
[1693514505905,3.30101966,26163.0,26162.0,0.020301]
[1693514506111,3.30107966,26163.0,26162.0,0.020301]
[1693514506317,3.30119966,26163.0,26162.0,0.020301]
[1693514506453,3.30101966,26163.0,26162.0,0.020301]
[1693514506656,3.30089966,26163.0,26162.0,0.020301]
[1693514506873,3.29951966,26163.0,26162.0,0.020301]
[1693514507075,3.29795966,26163.0,26162.0,0.020301]
[1693514507336,3.28589966,26163.0,26162.0,0.020301]
[1693514507485,3.28409966,26163.0,26162.0,0.020301]
[1693514507700,3.28547966,26163.0,26162.0,0.020301]
[1693514507905,3.28565966,26163.0,26162.0,0.020301]
[1693514508130,3.28589966,26163.0,26162.0,0.020301]
[1693514508327,3.28607966,26163.0,26162.0,0.020301]
[1693514508531,3.28655966,26163.0,26162.0,0.020301]
[1693514508849,3.28589966,26163.0,26162.0,0.020301]
[1693514509048,3.28529966,26163.0,26162.0,0.020301]
[1693514509209,3.28559966,26163.0,26162.0,0.020301]
[1693514509425,3.28565966,26163.0,26162.0,0.020301]
[1693514509624,3.28601966,26163.0,26162.0,0.020301]
[1693514509941,3.28667966,26163.0,26162.0,0.020301]
[1693514510146,3.28751966,26163.0,26162.0,0.020301]
[1693514510372,3.28763966,26163.0,26162.0,0.020301]
[1693514510667,3.28745966,26163.0,26162.0,0.020301]
[1693514510864,3.28457966,26163.0,26162.0,0.020301]
[1693514511089,3.12857966,26163.0,26162.0,0.020301]
[1693514511265,3.13019966,26163.0,26162.0,0.020301]
[1693514511524,3.12995966,26163.0,26162.0,0.020301]
[1693514511859,3.13061966,26163.0,26162.0,0.020301]
[1693514512059,3.13079966,26163.0,26162.0,0.020301]
[1693514512233,3.13109966,26163.0,26162.0,0.020301]
[1693514512533,3.13127966,26163.0,26162.0,0.020301]
[1693514512753,3.13145966,26163.0,26162.0,0.020301]
[1693514512964,3.13169966,26163.0,26162.0,0.020301]
[1693514513206,1.92899064,26163.0,26162.0,0.020301]
[1693514513411,0.41379209,26163.0,26162.0,1.856951]
[1693514513623,0.09162562,26163.0,26162.0,1.916951]
[1693514513831,0.22905795,26164.0,26163.0,0.06]
[1693514514045,0.09162754,26164.0,26163.0,1.779984]
[1693514515062,0.22905987,26165.0,26163.0,1.779984]
[1693514515306,0.22905987,26165.0,26164.0,0.1366]
[1693514515509,0.22905987,26165.0,26164.0,1.856518]
[1693514515842,0.09162754,26165.0,26164.0,1.856518]
[1693514516467,0.09562754,26165.0,26164.0,1.856518]
[1693514516624,0.09562754,26165.0,26164.0,2.1068037]
[1693514516850,0.004,26165.0,26164.0,2.1068037]
[1693514517049,0.004,26165.0,26164.0,1.856518]
[1693514517247,0.004,26165.0,26164.0,2.16655938]
[1693514517538,0.008,26165.0,26164.0,2.20571461]
[1693514517740,0.004,26165.0,26164.0,2.20571461]
[1693514517963,0.004,26165.0,26164.0,1.892518]
[1693514518225,0.008,26165.0,26164.0,1.928518]
[1693514518352,0.008,26165.0,26164.0,2.19821543]
[1693514520033,0.008,26165.0,26164.0,1.928518]
[1693514521370,0.008,26165.0,26164.0,1.948518]
[1693514521591,0.008,26165.0,26164.0,2.068518]
[1693514523836,0.008,26165.0,26164.0,2.87819885]
[1693514524058,0.9974,26170.0,26169.0,0.14]
[1693514524261,0.09162754,26175.0,26172.0,0.02]
[1693514524478,0.09162754,26175.0,26174.0,0.1166]
[1693514524684,0.09162754,26176.0,26174.0,1.835861]
[1693514524888,0.09162754,26176.0,26174.0,1.855861]
[1693514525094,0.09162754,26176.0,26175.0,0.1166]
[1693514525294,0.09162754,26176.0,26175.0,1.855795]
[1693514525295,0.09140616,26176.0,26175.0,1.855795]
[1693514525472,0.2285154,26177.0,26175.0,1.855795]
[1693514525681,0.2285154,26178.0,26176.0,0.1366]
[1693514525885,0.2285154,26178.0,26177.0,0.689622]
[1693514525886,0.09140616,26178.0,26177.0,0.689622]
[1693514526040,0.09140616,26178.0,26177.0,1.262644]
[1693514526638,1.7847154,26179.0,26177.0,1.262644]
[1693514526837,0.002,26178.0,26177.0,0.98293157]
[1693514527182,1.64760616,26179.0,26177.0,0.98293157]
[1693514527584,0.002,26178.0,26177.0,1.00393157]
[1693514528182,0.002,26178.0,26177.0,1.01493157]
[1693514528600,0.002,26178.0,26177.0,1.00393157]
[1693514528806,0.004,26178.0,26177.0,1.02793157]
[1693514529029,0.002,26178.0,26177.0,0.43390957]
[1693514529227,0.002,26178.0,26177.0,0.44190957]
[1693514529833,0.002,26178.0,26177.0,0.43390957]
[1693514530038,0.004,26178.0,26177.0,0.45490957]
[1693514533341,0.1634,26178.0,26177.0,0.45490957]
[1693514544154,2.25008085,26178.0,26177.0,0.045]
[1693514544425,3.03218822,26178.0,26177.0,0.045]
[1693514544663,3.03752822,26178.0,26177.0,0.045]
[1693514544888,3.03800822,26178.0,26177.0,0.045]
[1693514545067,3.03152822,26178.0,26177.0,0.045]
[1693514545241,3.03140822,26178.0,26177.0,0.045]
[1693514545442,3.03158822,26178.0,26177.0,0.045]
[1693514545656,3.03128822,26178.0,26177.0,0.045]
[1693514545858,3.03116822,26178.0,26177.0,0.045]
[1693514546058,3.02294822,26178.0,26177.0,0.045]
[1693514546261,3.02336822,26178.0,26177.0,0.045]
[1693514546436,3.02546822,26178.0,26177.0,0.045]
[1693514546641,3.76921726,26178.0,26177.0,0.045]
[1693514546841,3.58154822,26178.0,26177.0,0.045]
[1693514547066,3.58082822,26178.0,26177.0,0.045]
[1693514547441,3.98306822,26178.0,26177.0,0.045]
[1693514547645,4.22841192,26178.0,26177.0,0.024]
[1693514547851,0.2294,26176.0,26172.0,0.02]
[1693514548054,0.2294,26174.0,26172.0,0.02]
[1693514548233,1.51389885,26173.0,26172.0,0.02]
[1693514548388,2.21008622,26173.0,26172.0,0.02]
[1693514548565,2.43708622,26173.0,26172.0,0.02]
[1693514548775,3.01325522,26173.0,26171.0,0.02]
[1693514548992,0.69618737,26172.0,26171.0,0.02]
[1693514549194,2.28909022,26172.0,26171.0,0.02]
[1693514549396,2.87110122,26172.0,26169.0,0.02]
[1693514549610,1.06386822,26171.0,26169.0,0.02]
[1693514549810,0.573175,26170.0,26169.0,0.02]
[1693514550044,1.84253737,26170.0,26169.0,0.02]
[1693514550219,1.99283737,26170.0,26169.0,0.02]
[1693514550414,1.99283737,26170.0,26169.0,0.057]
[1693514550415,1.48488237,26170.0,26169.0,0.057]
[1693514550621,1.41966237,26170.0,26169.0,0.057]
[1693514550829,1.41966237,26170.0,26169.0,0.068]
[1693514551259,0.723475,26170.0,26169.0,0.057]
[1693514551612,1.42852768,26170.0,26169.0,0.057]
[1693514552329,0.723475,26170.0,26169.0,0.081]
[1693514552697,0.725475,26170.0,26169.0,0.081]
[1693514552930,0.725475,26170.0,26169.0,0.044]
[1693514553144,0.728475,26170.0,26169.0,0.073]
[1693514554698,0.728475,26170.0,26169.0,0.38812736]
[1693514555096,0.728475,26170.0,26169.0,0.073]
[1693514556047,1.66933085,26170.0,26169.0,0.073]
[1693514556250,1.73665085,26170.0,26169.0,0.073]
[1693514556448,1.74241085,26170.0,26169.0,0.073]
[1693514556745,1.73839085,26170.0,26169.0,0.073]
[1693514557000,2.31318585,26170.0,26169.0,0.073]
[1693514557226,1.74481085,26170.0,26169.0,0.073]
[1693514557438,1.75381085,26170.0,26169.0,0.073]
[1693514557638,1.75501085,26170.0,26169.0,0.073]
[1693514557845,1.75495085,26170.0,26169.0,0.073]
[1693514558017,1.75423085,26170.0,26169.0,0.073]
[1693514558220,1.75429085,26170.0,26169.0,0.073]
[1693514558439,2.33028585,26170.0,26169.0,0.073]
[1693514558627,3.03818721,26170.0,26169.0,0.053]
[1693514558810,3.15532721,26170.0,26169.0,0.053]
[1693514559004,3.15592721,26170.0,26169.0,0.053]
[1693514559203,3.15580721,26170.0,26169.0,0.053]
[1693514559529,3.15556721,26170.0,26169.0,0.053]
[1693514559732,3.15550721,26170.0,26169.0,0.053]
[1693514559933,3.15532721,26170.0,26169.0,0.053]
[1693514560118,3.15172721,26170.0,26169.0,0.053]
[1693514560319,3.15130721,26170.0,26169.0,0.053]
[1693514560518,3.15088721,26170.0,26169.0,0.053]
[1693514560731,3.03422721,26170.0,26169.0,0.053]
[1693514560913,3.01760721,26170.0,26169.0,0.053]
[1693514561116,3.01616721,26170.0,26169.0,0.053]
[1693514561294,2.31264585,26170.0,26169.0,0.053]
[1693514561511,2.31318585,26170.0,26169.0,0.053]
[1693514561735,2.31354585,26170.0,26169.0,0.053]
[1693514561937,2.31618585,26170.0,26169.0,0.053]
[1693514562136,2.32260585,26170.0,26169.0,0.053]
[1693514562357,2.32674585,26170.0,26169.0,0.053]
[1693514562533,2.32788585,26170.0,26169.0,0.053]
[1693514562737,2.32746585,26170.0,26169.0,0.053]
[1693514563157,2.32752585,26170.0,26169.0,0.053]
[1693514563518,2.32500585,26170.0,26169.0,0.053]
[1693514563672,2.32482585,26170.0,26169.0,0.053]
[1693514563886,2.32488585,26170.0,26169.0,0.053]
[1693514564059,2.32494585,26170.0,26169.0,0.053]
[1693514564256,2.32500585,26170.0,26169.0,0.053]
[1693514564484,2.32542585,26170.0,26169.0,0.053]
[1693514565134,2.32548585,26170.0,26169.0,0.053]
[1693514565332,2.32476585,26170.0,26169.0,0.053]
[1693514565537,2.32428585,26170.0,26169.0,0.053]
[1693514565713,2.32410585,26170.0,26169.0,0.053]
[1693514565917,2.32422585,26170.0,26169.0,0.053]
[1693514566111,2.33520585,26170.0,26169.0,0.053]
[1693514566456,2.33658585,26170.0,26169.0,0.053]
[1693514566584,2.33706585,26170.0,26169.0,0.053]
[1693514566787,2.33730585,26170.0,26169.0,0.053]
[1693514567108,2.35392585,26170.0,26169.0,0.053]
[1693514567330,2.35374585,26170.0,26169.0,0.053]
[1693514567527,2.35278585,26170.0,26169.0,0.053]
[1693514567729,2.35272585,26170.0,26169.0,0.053]
[1693514568266,2.35158585,26170.0,26169.0,0.053]
[1693514568419,2.35140585,26170.0,26169.0,0.053]
[1693514568619,2.35128585,26170.0,26169.0,0.053]
[1693514568829,2.35116585,26170.0,26169.0,0.053]
[1693514569050,2.35104585,26170.0,26169.0,0.053]
[1693514569247,2.35092585,26170.0,26169.0,0.053]
[1693514569566,2.35056585,26170.0,26169.0,0.053]
[1693514569728,2.35044585,26170.0,26169.0,0.053]
[1693514569907,2.34996585,26170.0,26169.0,0.053]
[1693514570107,2.35008585,26170.0,26169.0,0.053]
[1693514570415,2.34888585,26170.0,26169.0,0.053]
[1693514570747,2.35026585,26170.0,26169.0,0.053]
[1693514570907,2.35014585,26170.0,26169.0,0.053]
[1693514571109,2.35446585,26170.0,26169.0,0.053]
[1693514571451,2.35470585,26170.0,26169.0,0.053]
[1693514571632,2.35440585,26170.0,26169.0,0.053]
[1693514571830,2.35422585,26170.0,26169.0,0.053]
[1693514572027,2.35284585,26170.0,26169.0,0.053]
[1693514572265,2.35266585,26170.0,26169.0,0.053]
[1693514572461,2.35272585,26170.0,26169.0,0.053]
[1693514572662,2.31576585,26170.0,26169.0,0.053]
[1693514572882,2.31612585,26170.0,26169.0,0.053]
[1693514573085,2.31624585,26170.0,26169.0,0.053]
[1693514573240,2.31678585,26170.0,26169.0,0.053]
[1693514573440,2.31810585,26170.0,26169.0,0.053]
[1693514573642,2.31864585,26170.0,26169.0,0.053]
[1693514573842,2.31852585,26170.0,26169.0,0.053]
[1693514574109,2.31882585,26170.0,26169.0,0.053]
[1693514574310,2.31942585,26170.0,26169.0,0.053]
[1693514574510,2.31954585,26170.0,26169.0,0.053]
[1693514574650,2.31960585,26170.0,26169.0,0.053]
[1693514574852,2.31978585,26170.0,26169.0,0.053]
[1693514575072,2.32182585,26170.0,26169.0,0.053]
[1693514575278,2.34492585,26170.0,26169.0,0.053]
[1693514575553,2.34468585,26170.0,26169.0,0.053]
[1693514575754,2.34486585,26170.0,26169.0,0.053]
[1693514576436,4.66808883,26170.0,26169.0,0.053]
[1693514576616,5.52671305,26170.0,26169.0,0.053]
[1693514576821,5.34330073,26170.0,26169.0,0.053]
[1693514576956,4.98079169,26170.0,26169.0,0.053]
[1693514577164,0.2294,26167.0,26162.0,0.060301]
[1693514577366,0.2294,26165.0,26162.0,0.060301]
[1693514577571,1.51429285,26164.0,26162.0,0.060301]
[1693514577769,1.66779285,26164.0,26162.0,0.060301]
[1693514578799,1.67079285,26164.0,26162.0,0.097301]
[1693514578999,1.67079285,26164.0,26162.0,0.057301]
[1693514579000,2.31405885,26164.0,26162.0,0.057301]
[1693514579368,0.21668,26163.0,26162.0,0.060301]
[1693514579605,2.30590485,26163.0,26162.0,0.060301]
[1693514579776,2.45574485,26163.0,26162.0,0.057301]
[1693514579979,2.45568485,26163.0,26162.0,0.057301]
[1693514580181,2.45550485,26163.0,26162.0,0.093301]
[1693514580386,2.68358485,26163.0,26162.0,0.056301]
[1693514580587,2.67584485,26163.0,26162.0,0.033301]
[1693514580731,2.67356485,26163.0,26162.0,0.049301]
[1693514581116,2.67736485,26163.0,26162.0,0.075301]
[1693514581269,2.67742485,26163.0,26162.0,0.075301]
[1693514581466,2.73802585,26163.0,26162.0,0.075301]
[1693514581670,2.73904585,26163.0,26162.0,0.075301]
[1693514582194,2.73922585,26163.0,26162.0,0.075301]
[1693514582603,2.73916585,26163.0,26162.0,0.075301]
[1693514582778,2.73880585,26163.0,26162.0,0.075301]
[1693514582957,2.73874585,26163.0,26162.0,0.075301]
[1693514583160,2.73880585,26163.0,26162.0,0.075301]
[1693514583506,2.84625344,26163.0,26162.0,0.075301]
[1693514583639,2.86581344,26163.0,26162.0,0.075301]
[1693514583844,2.76940585,26163.0,26162.0,0.075301]
[1693514584047,2.77216585,26163.0,26162.0,0.075301]
[1693514584365,2.76610585,26163.0,26162.0,0.075301]
[1693514584563,2.76808585,26163.0,26162.0,0.075301]
[1693514584932,2.77150585,26163.0,26162.0,0.075301]
[1693514585108,2.77138585,26163.0,26162.0,0.075301]
[1693514585266,2.77126585,26163.0,26162.0,0.075301]
[1693514585472,2.77420585,26163.0,26162.0,0.075301]
[1693514585668,2.77456585,26163.0,26162.0,0.075301]
[1693514585869,2.77414585,26163.0,26162.0,0.075301]
[1693514586095,2.77384585,26163.0,26162.0,0.075301]
[1693514586299,2.77378585,26163.0,26162.0,0.075301]
[1693514586496,2.77426585,26163.0,26162.0,0.075301]
[1693514586698,3.32171489,26163.0,26162.0,0.075301]
[1693514586904,3.33887489,26163.0,26162.0,0.075301]
[1693514587063,3.31631489,26163.0,26162.0,0.075301]
[1693514587274,3.31775489,26163.0,26162.0,0.049301]
[1693514587600,3.32211489,26163.0,26162.0,0.049301]
[1693514587799,3.29943489,26163.0,26162.0,0.049301]
[1693514588026,3.15801489,26163.0,26162.0,0.020301]
[1693514588199,3.17083489,26163.0,26162.0,0.021301]
[1693514588407,3.17189489,26163.0,26162.0,0.025301]
[1693514588623,3.17291489,26163.0,26162.0,0.025301]
[1693514588798,2.80466585,26163.0,26162.0,0.021301]
[1693514588991,2.81466585,26163.0,26162.0,0.022301]
[1693514589220,2.81460585,26163.0,26162.0,0.022301]
[1693514589469,2.81484585,26163.0,26162.0,0.022301]
[1693514589614,2.81550585,26163.0,26162.0,0.022301]
[1693514590019,2.81568585,26163.0,26162.0,0.022301]
[1693514590215,2.94696585,26163.0,26162.0,0.022301]
[1693514590461,2.92888585,26163.0,26162.0,0.022301]
[1693514590665,2.75578585,26163.0,26162.0,0.022301]
[1693514590882,2.74636585,26163.0,26162.0,0.022301]
[1693514591077,2.74768585,26163.0,26162.0,0.022301]
[1693514591282,2.17129785,26163.0,26162.0,0.022301]
[1693514591459,2.01557785,26163.0,26162.0,0.022301]
[1693514591662,0.023,26163.0,26162.0,1.325601]
[1693514591871,0.023,26163.0,26162.0,2.18198937]
[1693514592519,0.013,26163.0,26162.0,2.18098937]
[1693514592721,0.015,26163.0,26162.0,2.19798937]
[1693514592928,0.002,26163.0,26162.0,2.19698937]
[1693514593093,0.002,26163.0,26162.0,2.20998937]
[1693514593094,0.003,26163.0,26162.0,2.20998937]
[1693514598325,0.003,26163.0,26162.0,1.63663937]
[1693514599321,0.003,26163.0,26162.0,1.06328937]
[1693514601860,0.003,26163.0,26162.0,1.63663937]
[1693514602863,0.003,26163.0,26162.0,1.06328937]
[1693514603063,0.37068085,26163.0,26162.0,0.090301]
[1693514603303,0.94400885,26163.0,26162.0,0.090301]
[1693514603880,2.09066485,26163.0,26162.0,0.090301]
[1693514604084,1.58777685,26163.0,26162.0,0.090301]
[1693514604291,1.51733685,26163.0,26162.0,0.090301]
[1693514604482,1.67593685,26163.0,26162.0,0.090301]
[1693514606654,1.74619685,26163.0,26162.0,0.090301]
[1693514606869,1.74835685,26163.0,26162.0,0.050301]
[1693514607088,2.58702485,26163.0,26162.0,0.050301]
[1693514607245,2.70938485,26163.0,26162.0,0.050301]
[1693514607428,3.44062485,26163.0,26162.0,0.050301]
[1693514607664,4.39263061,26163.0,26162.0,0.050301]
[1693514607914,4.76185965,26163.0,26162.0,0.050301]
[1693514608117,0.522,26161.0,26160.0,0.020301]
[1693514608335,0.522,26158.0,26157.0,0.020301]
[1693514608537,3.85645178,26158.0,26157.0,0.020301]
[1693514608741,4.77249744,26158.0,26157.0,0.020301]
[1693514608943,5.66947192,26158.0,26157.0,0.020301]
[1693514609151,5.29968636,26158.0,26157.0,0.020301]
[1693514609355,5.26881719,26158.0,26157.0,0.020301]